bitfinex-derivatives/quotes_ETHF0:USTF0_20260119
["timestamp","ask_amount","ask_price","bid_price","bid_amount"]
[1768852618167,0.88655952,3220.5,3219.4,0.15539]
[1768852618371,0.88655952,3220.4,3219.4,0.15539]
[1768852618666,0.00223129,3220.7,3219.4,0.15539]
[1768852618868,0.88655928,3220.6,3219.4,0.15539]
[1768852619062,0.88655928,3220.5,3219.4,0.15539]
[1768852619262,0.88655928,3220.4,3219.4,0.15539]
[1768852619463,0.00223129,3220.7,3219.4,0.15539]
[1768852619660,0.88655915,3220.6,3219.4,0.15539]
[1768852619863,0.88655915,3220.5,3219.4,0.15539]
[1768852620071,0.88655915,3220.4,3219.4,0.15539]
[1768852620270,0.00223129,3220.7,3219.4,0.15539]
[1768852620473,0.88655891,3220.6,3219.5,0.15538]
[1768852620675,0.88655891,3220.5,3219.5,0.15538]
[1768852620872,0.00223129,3220.7,3219.5,0.15538]
[1768852621168,0.88653838,3220.6,3219.5,0.15538]
[1768852621371,0.88653838,3220.5,3219.5,0.15538]
[1768852621572,0.00223129,3220.7,3219.5,0.15538]
[1768852621868,0.88686339,3220.6,3219.5,0.15538]
[1768852622060,0.88686339,3220.5,3219.5,0.15538]
[1768852622273,0.00223129,3220.7,3219.5,0.15538]
[1768852622472,0.88680612,3220.6,3219.5,0.15538]
[1768852622672,0.88680612,3220.5,3219.5,0.15538]
[1768852622973,0.00223129,3220.7,3219.5,0.15538]
[1768852623272,0.88679519,3220.6,3219.5,0.29837827]
[1768852623474,0.88679519,3220.5,3219.5,0.29837827]
[1768852623770,0.00223129,3220.7,3219.8,0.29836827]
[1768852623966,0.00223129,3220.7,3219.9,0.29835827]
[1768852624166,1.67125492,3221.7,3220.2,0.14299827]
[1768852624371,1.17784835,3221.6,3220.2,0.14299827]
[1768852624575,0.88625687,3221.5,3220.2,0.14299827]
[1768852624776,0.88625687,3221.4,3220.2,0.14299827]
[1768852624973,0.88625687,3221.3,3220.2,0.14299827]
[1768852625173,0.88625687,3221.2,3220.2,0.14535403]
[1768852625475,0.00318864,3221.3,3220.2,0.14535403]
[1768852625674,0.88569901,3221.2,3220.2,0.14535403]
[1768852625976,0.00318864,3221.3,3220.2,0.14535403]
[1768852626175,0.88569883,3221.2,3220.2,0.14535403]
[1768852626378,0.00318864,3221.3,3220.2,0.14535403]
[1768852626570,0.88537228,3221.2,3220.2,0.14535403]
[1768852626771,0.00318864,3221.3,3220.2,0.14535403]
[1768852626974,0.8853721,3221.2,3220.2,0.14535403]
[1768852627173,0.00318864,3221.3,3220.2,0.14535403]
[1768852630368,0.00318864,3221.3,3220.2,0.30070403]
[1768852634878,0.00318864,3221.3,3220.3,0.14299827]
[1768852640482,0.00318864,3221.3,3220.4,0.14299827]
[1768852641781,0.00318864,3221.3,3220.4,0.29833827]
[1768852641975,0.00318864,3221.3,3220.5,0.14299827]
[1768852642170,0.00318864,3221.3,3220.5,0.29833827]
[1768852642375,0.00318864,3221.3,3220.6,0.14299827]
[1768852647480,0.00318864,3221.3,3220.6,0.29832827]
[1768852647685,1.67125492,3222.3,3220.7,0.13206588]
[1768852648580,0.88401833,3222.2,3220.7,0.13206588]
[1768852649085,2.5576212,3222.3,3220.7,0.13206588]
[1768852649287,0.88401833,3222.2,3220.7,0.13206588]
[1768852650891,1.28595653,3222.1,3220.8,1.28595653]
[1768852651090,0.88401833,3222.0,3220.8,1.28595653]
[1768852653785,0.88401833,3222.0,3220.8,1.41802241]
[1768852654493,1.28595653,3222.1,3220.8,1.41802241]
[1768852654687,0.88546852,3222.0,3220.8,1.41802241]
[1768852654889,0.88546852,3221.9,3220.8,1.41802241]
[1768852655086,0.88546852,3221.8,3220.8,1.41802241]
[1768852655287,0.88546852,3221.7,3220.8,1.41802241]
[1768852655487,1.28595653,3222.1,3220.8,1.41802241]
[1768852655694,0.8855115,3222.0,3220.8,1.41802241]
[1768852655993,0.8855115,3221.9,3220.8,1.41802241]
[1768852656194,0.8855115,3221.8,3220.8,1.41802241]
[1768852656383,0.8855115,3221.7,3220.8,0.13206588]
[1768852656588,0.8855115,3221.6,3220.8,0.13206588]
[1768852656787,1.28595653,3221.9,3220.8,0.13206588]
[1768852656987,0.88559235,3221.8,3220.8,0.13206588]
[1768852657189,0.88559235,3221.7,3220.8,0.13206588]
[1768852657388,0.88559235,3221.6,3220.8,0.13206588]
[1768852657584,1.28595653,3221.9,3220.8,0.13206588]
[1768852657795,0.88567246,3221.8,3220.8,0.13206588]
[1768852657986,0.88567246,3221.7,3220.8,0.13206588]
[1768852658186,0.88567246,3221.6,3220.8,0.13206588]
[1768852658386,1.28595653,3221.9,3220.8,0.13206588]
[1768852658587,1.28595653,3221.7,3220.6,0.15533]
[1768852658793,0.88577226,3221.6,3220.6,0.15533]
[1768852667919,0.88577226,3221.5,3220.6,0.15533]
[1768852668216,1.28595653,3221.7,3220.6,0.15533]
[1768852668417,0.88638353,3221.6,3220.6,0.15533]
[1768852668620,0.88638353,3221.5,3220.6,0.15533]
[1768852668915,1.28595653,3221.7,3220.6,0.15533]
[1768852669119,0.886395,3221.6,3220.6,0.15533]
[1768852669318,0.886395,3221.5,3220.6,0.15533]
[1768852669506,1.28595653,3221.7,3220.6,0.15533]
[1768852669702,0.88647662,3221.6,3220.6,0.15533]
[1768852669914,0.88647662,3221.5,3220.6,0.15533]
[1768852670117,1.28595653,3221.7,3220.6,0.15533]
[1768852670317,0.8865847,3221.6,3220.6,0.15533]
[1768852670518,0.8865847,3221.5,3220.6,0.15533]
[1768852670712,1.28595653,3221.7,3220.6,0.15533]
[1768852670912,0.8865847,3221.6,3220.6,0.15533]
[1768852671111,0.8865847,3221.5,3220.6,0.15533]
[1768852671313,1.28595653,3221.7,3220.6,0.15533]
[1768852671510,0.886653,3221.6,3220.6,0.15533]
[1768852671715,0.886653,3221.5,3220.6,0.15533]
[1768852671913,1.28595653,3221.7,3220.6,0.15533]
[1768852672115,0.88665285,3221.6,3220.6,0.15533]
[1768852672317,0.88665285,3221.5,3220.6,0.15533]
[1768852672518,1.28595653,3221.9,3220.6,0.15533]
[1768852672719,0.8866543,3221.8,3220.6,0.15533]
[1768852672919,0.8866543,3221.7,3220.6,1.44128653]
[1768852673115,0.8866543,3221.6,3220.6,1.44128653]
[1768852673313,0.8866543,3221.5,3220.6,1.44128653]
[1768852673512,1.28595653,3221.9,3220.6,1.44128653]
[1768852673722,0.88666009,3221.8,3220.6,1.44128653]
[1768852673921,0.88666009,3221.7,3220.6,1.44128653]
[1768852674125,0.88666009,3221.6,3220.8,1.28595653]
[1768852674325,3.11247145,3222.1,3220.8,1.28595653]
[1768852674626,0.88653535,3222.0,3220.8,1.28595653]
[1768852674812,0.88653535,3221.9,3220.8,1.28595653]
[1768852675127,0.88653535,3221.8,3220.8,1.28595653]
[1768852675326,0.88653535,3221.7,3220.8,1.28595653]
[1768852675517,0.88653535,3221.6,3221.2,1.28595653]
[1768852675825,0.15526,3222.1,3221.2,1.28595653]
[1768852676017,0.88651391,3222.0,3221.2,1.28595653]
[1768852676219,0.88651391,3221.9,3221.2,1.28595653]
[1768852676525,0.88651391,3221.8,3221.2,1.28595653]
[1768852676726,0.88651391,3221.7,3221.0,1.28595653]
[1768852676920,0.88648432,3221.6,3220.8,1.41996345]
[1768852677124,0.15526,3222.1,3220.8,1.41996345]
[1768852677326,0.88646736,3222.0,3220.8,1.41996345]
[1768852677525,0.88646736,3221.9,3220.8,1.41996345]
[1768852677726,0.88646736,3221.8,3220.8,1.41996345]
[1768852677915,0.88646736,3221.7,3220.8,1.41996345]
[1768852678116,0.28587047,3222.1,3220.6,0.15533]
[1768852678428,1.28595653,3221.9,3220.6,0.15533]
[1768852678629,0.88643754,3221.8,3220.6,1.44128653]
[1768852679030,0.88643754,3221.7,3220.6,1.57529345]
[1768852679231,0.15526,3222.1,3220.9,0.13400692]
[1768852679427,0.88617895,3222.0,3221.0,1.28595653]
[1768852679631,0.88617895,3221.9,3221.0,1.28595653]
[1768852679925,0.88617895,3221.8,3221.0,1.28595653]
[1768852680119,0.88617895,3221.7,3220.9,0.13400692]
[1768852680325,0.88623507,3221.6,3220.9,0.13400692]
[1768852680526,1.44121653,3222.1,3220.9,0.13400692]
[1768852680726,0.88623154,3222.0,3220.9,0.13400692]
[1768852680927,0.88623154,3221.9,3220.7,1.28595653]
[1768852681221,0.88623154,3221.8,3220.7,1.28595653]
[1768852681426,0.88623154,3221.7,3220.7,1.28595653]
[1768852681631,1.28595653,3222.0,3220.8,0.13400692]
[1768852681830,0.88616623,3221.9,3220.8,0.13400692]
[1768852682025,0.88616623,3221.8,3220.8,0.13400692]
[1768852682220,0.88616623,3221.7,3220.8,0.13400692]
[1768852682526,0.15526,3222.1,3220.8,0.13400692]
[1768852682727,0.88613516,3222.0,3220.8,0.13400692]
[1768852682928,0.88613516,3221.9,3220.8,0.13400692]
[1768852683130,0.88613516,3221.8,3220.8,0.13400692]
[1768852683328,0.88613516,3221.7,3220.8,0.13400692]
[1768852683529,0.15526,3222.1,3220.8,0.13400692]
[1768852683730,0.88610328,3222.0,3220.8,0.13400692]
[1768852683931,0.88610328,3221.9,3220.8,0.13400692]
[1768852684131,0.88610328,3221.8,3220.8,0.13400692]
[1768852684437,0.88610328,3221.7,3220.8,0.13400692]
[1768852684629,0.15526,3222.1,3220.8,0.13400692]
[1768852684831,0.88609881,3222.0,3220.8,0.13400692]
[1768852685131,0.88609881,3221.9,3220.8,0.13400692]
[1768852685331,0.88609881,3221.8,3220.8,0.13400692]
[1768852685638,0.88609881,3221.7,3220.8,0.13400692]
[1768852685840,0.88609881,3221.6,3220.8,0.13400692]
[1768852686039,1.28595653,3222.0,3220.8,0.13400692]
[1768852686237,0.88607293,3221.9,3220.8,0.13400692]
[1768852686431,0.88607293,3221.8,3220.8,0.13400692]
[1768852686630,0.88607293,3221.7,3220.8,0.13400692]
[1768852686826,0.88607293,3221.6,3220.8,0.13400692]
[1768852687031,1.28595653,3222.0,3220.8,0.13400692]
[1768852687231,0.88607555,3221.9,3220.8,0.13400692]
[1768852687437,0.88607555,3221.8,3220.7,1.28595653]
[1768852687633,0.88607555,3221.7,3220.6,0.15533]
[1768852687831,2.17203208,3221.6,3220.6,0.15533]
[1768852688031,1.28595653,3221.6,3220.6,0.15533]
[1768852690940,1.28595653,3221.8,3220.6,0.15533]
[1768852691137,0.88609411,3221.7,3220.6,0.15533]
[1768852691329,0.88609411,3221.6,3220.6,0.15533]
[1768852691534,1.28595653,3221.8,3220.6,0.15533]
[1768852691734,0.88609354,3221.7,3220.6,0.15533]
[1768852691940,0.88609354,3221.6,3220.6,0.15533]
[1768852692140,1.28595653,3221.8,3220.6,0.15533]
[1768852692441,0.88609428,3221.7,3220.6,0.15533]
[1768852692637,0.88609428,3221.6,3220.6,0.15533]
[1768852692836,1.28595653,3221.8,3220.6,0.15533]
[1768852693038,0.88609727,3221.7,3220.6,0.15533]
[1768852693244,0.88609727,3221.6,3220.6,0.15533]
[1768852693550,1.28595653,3221.8,3220.6,0.15533]
[1768852693739,0.88611042,3221.7,3220.6,0.15533]
[1768852693941,0.88611042,3221.6,3220.6,0.15533]
[1768852694134,1.28595653,3221.8,3220.6,0.15533]
[1768852694335,0.88611803,3221.7,3220.6,0.15533]
[1768852694544,0.88611803,3221.6,3220.6,0.15533]
[1768852694843,1.28595653,3221.8,3220.6,0.15533]
[1768852695149,0.88612485,3221.7,3220.6,0.15533]
[1768852695343,0.88612485,3221.6,3220.6,0.15533]
[1768852695535,1.28595653,3221.8,3220.6,0.15533]
[1768852695734,0.886144,3221.7,3220.6,0.15533]
[1768852695934,0.886144,3221.6,3220.6,0.15533]
[1768852696137,1.28595653,3221.8,3220.6,0.15533]
[1768852696340,0.88615458,3221.7,3220.6,0.15533]
[1768852696542,0.88615458,3221.6,3220.6,0.15533]
[1768852696743,1.28595653,3221.8,3220.6,0.15533]
[1768852696945,0.88615724,3221.7,3220.6,0.15533]
[1768852697243,0.88615724,3221.6,3220.6,0.15533]
[1768852697446,1.28595653,3221.8,3220.6,0.15533]
[1768852697645,0.88617712,3221.7,3220.6,0.15533]
[1768852697841,0.88617712,3221.6,3220.6,0.15533]
[1768852698047,1.28595653,3221.8,3220.6,0.15533]
[1768852698345,0.8861918,3221.7,3220.6,0.15533]
[1768852698546,0.8861918,3221.6,3220.6,0.15533]
[1768852698742,1.28595653,3221.8,3220.6,0.15533]
[1768852698944,0.88619739,3221.7,3220.6,0.15533]
[1768852699241,0.88619739,3221.6,3220.6,0.15533]
[1768852699442,1.28595653,3221.8,3220.6,0.15533]
[1768852699642,0.88622553,3221.7,3220.6,0.15533]
[1768852699942,0.88622553,3221.6,3220.6,0.15533]
[1768852700139,1.28595653,3221.8,3220.6,0.15533]
[1768852700341,0.88625511,3221.7,3220.6,0.15533]
[1768852700541,0.88625511,3221.6,3220.6,0.15533]
[1768852700738,1.28595653,3221.8,3220.6,0.15533]
[1768852700938,0.88625736,3221.7,3220.6,0.15533]
[1768852701148,0.88625736,3221.6,3220.6,0.15533]
[1768852701350,1.28595653,3221.8,3220.6,0.15533]
[1768852701543,0.88629576,3221.7,3220.6,0.15533]
[1768852701742,0.88629576,3221.6,3220.6,0.15533]
[1768852701944,1.28595653,3221.8,3220.6,0.15533]
[1768852702243,0.88629508,3221.7,3220.6,0.15533]
[1768852702444,0.88629508,3221.6,3220.6,0.15533]
[1768852702743,1.28595653,3221.8,3220.6,0.15533]
[1768852702945,0.88632021,3221.7,3220.6,0.15533]
[1768852703143,0.88632021,3221.6,3220.6,0.15533]
[1768852703343,1.28595653,3221.8,3220.6,0.15533]
[1768852703542,0.88634506,3221.7,3220.6,0.15533]
[1768852703738,0.88634506,3221.6,3220.6,0.15533]
[1768852703949,1.28595653,3221.8,3220.6,0.15533]
[1768852704145,0.88572705,3221.7,3220.6,0.15533]
[1768852704350,0.88572705,3221.6,3220.6,0.15533]
[1768852704555,1.28595653,3221.8,3220.6,0.15533]
[1768852704747,0.88575755,3221.7,3220.6,0.15533]
[1768852704948,0.88575755,3221.6,3220.6,0.15533]
[1768852705148,1.28595653,3221.8,3220.6,0.15533]
[1768852705350,0.88575405,3221.7,3220.6,0.15533]
[1768852705549,0.88575405,3221.6,3220.6,0.15533]
[1768852705752,1.28595653,3221.8,3220.6,0.15533]
[1768852705954,0.88575887,3221.7,3220.6,0.15533]
[1768852706152,0.88575887,3221.6,3220.6,0.15533]
[1768852706353,1.28595653,3221.8,3220.6,0.15533]
[1768852706555,0.88577388,3221.7,3220.6,0.15533]
[1768852706747,0.88577388,3221.6,3220.6,0.15533]
[1768852707047,1.28595653,3221.8,3220.6,0.15533]
[1768852707247,0.88577348,3221.7,3220.6,0.15533]
[1768852707447,0.88577348,3221.6,3220.6,0.15533]
[1768852707643,1.28595653,3221.8,3220.6,0.15533]
[1768852707847,0.88577478,3221.7,3220.6,0.15533]
[1768852708049,0.88577478,3221.6,3220.6,0.15533]
[1768852708249,1.28595653,3221.8,3220.6,0.15533]
[1768852708559,0.8857788,3221.7,3220.6,0.15533]
[1768852708749,0.8857788,3221.6,3220.6,0.15533]
[1768852708952,1.28595653,3221.8,3220.6,0.15533]
[1768852709153,0.88578074,3221.7,3220.6,0.15533]
[1768852709451,1.28595653,3221.8,3220.6,0.15533]
[1768852709452,0.88578074,3221.6,3220.6,0.15533]
[1768852709652,1.28595653,3221.8,3220.6,0.15533]
[1768852709857,0.88578456,3221.7,3220.6,0.15533]
[1768852710056,0.88578456,3221.6,3220.6,0.15533]
[1768852710258,1.28595653,3221.8,3220.6,0.15533]
[1768852710459,0.88578511,3221.7,3220.6,0.15533]
[1768852710758,0.88578511,3221.6,3220.6,0.15533]
[1768852711061,1.95712539,3222.1,3220.6,0.15533]
[1768852711255,0.88578381,3222.0,3220.6,0.15533]
[1768852711459,0.88578381,3221.9,3220.6,0.15533]
[1768852711659,0.88578381,3221.8,3220.6,0.15533]
[1768852711852,0.88578381,3221.7,3220.6,0.15533]
[1768852712053,0.88578381,3221.6,3220.6,0.15533]
[1768852712351,1.95712539,3222.1,3220.6,0.15533]
[1768852712556,0.88574255,3222.0,3220.6,0.15533]
[1768852712759,0.88574255,3221.9,3220.6,0.15533]
[1768852712959,0.88574255,3221.8,3220.6,0.15533]
[1768852713261,0.88574255,3221.7,3220.6,0.15533]
[1768852713463,0.88574255,3221.6,3220.6,0.15533]
[1768852713658,1.95712539,3222.1,3220.6,0.15533]
[1768852713859,0.88576139,3222.0,3220.6,0.15533]
[1768852714059,0.88576139,3221.9,3220.6,0.15533]
[1768852714259,1.95712539,3222.1,3220.6,0.15533]
[1768852714260,0.88576139,3221.8,3220.6,0.15533]
[1768852714460,0.88576139,3221.7,3220.6,0.15533]
[1768852714760,0.88576139,3221.6,3220.6,0.15533]
[1768852714961,1.95712539,3222.1,3220.6,0.15533]
[1768852715162,0.88575974,3222.0,3220.6,0.15533]
[1768852715362,0.88575974,3221.9,3220.6,0.15533]
[1768852715662,0.88575974,3221.8,3220.6,0.15533]
[1768852715865,0.88575974,3221.7,3220.6,0.15533]
[1768852716067,0.88575974,3221.6,3220.6,0.15533]
[1768852716254,1.95712539,3222.1,3220.6,0.15533]
[1768852716455,0.8857596,3222.0,3220.6,0.15533]
[1768852716655,0.8857596,3221.9,3220.6,0.15533]
[1768852716851,0.8857596,3221.8,3220.6,0.15533]
[1768852717055,0.8857596,3221.7,3220.6,0.15533]
[1768852717257,0.8857596,3221.6,3220.6,0.15533]
[1768852717466,1.95712539,3222.1,3220.6,0.15533]
[1768852717762,0.88576119,3222.0,3220.6,0.15533]
[1768852718062,0.88576119,3221.9,3220.6,0.15533]
[1768852718265,0.88576119,3221.8,3220.6,0.15533]
[1768852718467,0.88576119,3221.7,3220.6,0.15533]
[1768852718657,0.88576119,3221.6,3220.6,0.15533]
[1768852718859,1.95712539,3222.1,3220.6,0.15533]
[1768852719155,0.88576223,3222.0,3220.6,0.15533]
[1768852719453,0.88576223,3221.9,3220.6,0.15533]
[1768852719653,0.88576223,3221.8,3220.6,0.15533]
[1768852719861,0.88576223,3221.7,3220.6,0.15533]
[1768852720064,0.88576223,3221.6,3220.6,0.15533]
[1768852720264,1.95712539,3222.1,3220.6,0.15533]
[1768852720464,0.88575591,3222.0,3220.6,0.15533]
[1768852720671,0.88575591,3221.9,3220.6,0.15533]
[1768852720971,0.88575591,3221.8,3220.6,0.15533]
[1768852721267,0.88575591,3221.7,3220.6,0.15533]
[1768852721463,0.88575591,3221.6,3220.6,0.15533]
[1768852721764,1.95712539,3222.1,3220.6,0.15533]
[1768852721964,0.88574924,3222.0,3220.6,0.15533]
[1768852722162,0.88574924,3221.9,3220.6,0.15533]
[1768852722463,0.88574924,3221.8,3220.6,0.15533]
[1768852722664,0.88574924,3221.7,3220.6,0.15533]
[1768852722863,0.88574924,3221.6,3220.6,0.15533]
[1768852723055,1.95712539,3222.1,3220.6,0.15533]
[1768852723258,0.88575588,3222.0,3220.6,0.15533]
[1768852723454,0.88575588,3221.9,3220.6,0.15533]
[1768852723673,0.88575588,3221.8,3220.6,0.15533]
[1768852723862,0.88575588,3221.7,3220.6,0.15533]
[1768852724065,0.88575588,3221.6,3220.6,0.15533]
[1768852724264,1.95712539,3222.1,3220.6,0.15533]
[1768852724466,0.88576019,3222.0,3220.6,0.15533]
[1768852724666,0.88576019,3221.9,3220.6,0.15533]
[1768852724868,0.88576019,3221.8,3220.6,0.15533]
[1768852725070,0.88576019,3221.7,3220.6,0.15533]
[1768852725367,0.88576019,3221.6,3220.6,0.15533]
[1768852725569,0.88576019,3221.5,3220.6,0.15533]
[1768852725769,1.95712539,3222.1,3220.6,0.15533]
[1768852725970,0.88575698,3222.0,3220.6,0.15533]
[1768852726174,0.88575698,3221.9,3220.6,0.15533]
[1768852726469,0.88575698,3221.8,3220.6,0.15533]
[1768852726670,0.88575698,3221.7,3220.6,0.15533]
[1768852726872,0.88575698,3221.6,3220.6,0.15533]
[1768852727170,0.88575698,3221.5,3220.6,0.15533]
[1768852727371,1.95712539,3222.1,3220.6,0.15533]
[1768852727567,1.17839252,3222.0,3220.6,0.15533]
[1768852727772,0.88573899,3221.9,3220.6,0.15533]
[1768852727971,0.88573899,3221.8,3220.6,0.15533]
[1768852728272,0.88573899,3221.7,3220.6,0.15533]
[1768852728472,0.88573899,3221.6,3220.6,0.15533]
[1768852728674,0.88573899,3221.5,3220.6,0.15533]
[1768852728870,1.95712539,3222.1,3220.6,0.15533]
[1768852729069,1.17838314,3222.0,3220.6,0.15533]
[1768852729269,0.88573305,3221.9,3220.6,0.15533]
[1768852729466,0.88573305,3221.8,3220.6,0.15533]
[1768852729662,0.88573305,3221.7,3220.6,0.15533]
[1768852729876,0.88573305,3221.6,3220.6,0.15533]
[1768852730071,0.88573305,3221.5,3220.6,0.15533]
[1768852730269,1.95712539,3222.1,3220.6,0.15533]
[1768852730471,0.88575265,3222.0,3220.6,0.15533]
[1768852730671,0.88575265,3221.9,3220.6,0.15533]
[1768852730971,0.88575265,3221.8,3220.6,0.15533]
[1768852731179,0.88575265,3221.7,3220.6,0.15533]
[1768852731378,0.88575265,3221.6,3220.6,0.15533]
[1768852731584,0.88575265,3221.5,3220.6,0.15533]
[1768852731884,1.95712539,3222.1,3220.6,0.15533]
[1768852732184,1.17855345,3222.0,3220.6,0.15533]
[1768852732485,0.88586247,3221.9,3220.6,0.15533]
[1768852732678,0.88586247,3221.8,3220.6,0.15533]
[1768852732881,0.88586247,3221.7,3220.6,0.15533]
[1768852733079,0.88586247,3221.6,3220.6,0.15533]
[1768852733282,0.88585393,3221.5,3220.6,0.15533]
[1768852733482,1.95712539,3222.1,3220.6,0.15533]
[1768852733682,0.88585727,3222.0,3220.6,0.15533]
[1768852733884,0.88585727,3221.9,3220.6,0.15533]
[1768852734187,0.88585727,3221.8,3220.6,0.15533]
[1768852734390,0.88585727,3221.7,3220.6,0.15533]
[1768852734689,0.88585727,3221.6,3220.6,0.15533]
[1768852734885,0.88585727,3221.5,3220.6,0.15533]
[1768852735089,1.95712539,3222.1,3220.6,0.15533]
[1768852735282,0.88573116,3222.0,3220.6,0.15533]
[1768852735482,0.88573116,3221.9,3220.6,0.15533]
[1768852735685,0.88573116,3221.8,3220.6,0.15533]
[1768852735884,0.88573116,3221.7,3220.6,0.15533]
[1768852736092,0.88573116,3221.6,3220.6,0.15533]
[1768852736292,0.88573116,3221.5,3220.6,0.15533]
[1768852736596,1.95712539,3222.1,3220.6,0.15533]
[1768852736793,0.88572711,3222.0,3220.6,0.15533]
[1768852737094,0.88572711,3221.9,3220.6,0.15533]
[1768852737296,0.88572711,3221.8,3220.6,0.15533]
[1768852737497,0.88572711,3221.7,3220.6,0.15533]
[1768852737698,0.88572711,3221.6,3220.6,0.15533]
[1768852737897,0.88572711,3221.5,3220.6,0.15533]
[1768852738193,1.95712539,3222.1,3220.6,0.15533]
[1768852738394,0.88572359,3222.0,3220.6,0.15533]
[1768852738583,0.88572359,3221.9,3220.6,0.15533]
[1768852738789,0.88572359,3221.8,3220.6,0.15533]
[1768852738994,0.88572359,3221.7,3220.6,0.15533]
[1768852739194,0.88572359,3221.6,3220.6,0.15533]
[1768852739394,1.95712539,3222.1,3220.6,0.15533]
[1768852739599,0.88571921,3222.0,3220.6,0.15533]
[1768852739799,0.88571921,3221.9,3220.6,0.15533]
[1768852739992,0.88571921,3221.8,3220.6,0.15533]
[1768852740193,0.88571921,3221.7,3220.6,0.15533]
[1768852740398,0.88571921,3221.6,3220.6,0.15533]
[1768852740599,1.95712539,3222.1,3220.6,0.15533]
[1768852740787,0.88571627,3222.0,3220.6,0.15533]
[1768852740990,0.88571627,3221.9,3220.6,0.15533]
[1768852741286,0.88571627,3221.8,3220.6,0.15533]
[1768852741488,0.88571627,3221.7,3220.6,0.15533]
[1768852741693,0.88571627,3221.6,3220.6,0.15533]
[1768852741900,0.88571627,3221.5,3220.6,0.15533]
[1768852742199,1.95712539,3222.1,3220.6,0.15533]
[1768852742200,0.13558664,3221.9,3220.6,0.15533]
[1768852742400,0.88572217,3221.8,3220.6,0.15533]
[1768852742590,1.02130881,3221.7,3220.6,0.15533]
[1768852742790,0.88572217,3221.6,3220.6,0.15533]
[1768852742989,0.88572217,3221.5,3220.6,0.15533]
[1768852743196,0.13558664,3221.7,3220.6,0.15533]
[1768852743496,0.88571712,3221.6,3220.6,0.15533]
[1768852743695,0.88571712,3221.5,3220.6,0.15533]
[1768852743897,0.13558664,3221.7,3220.6,0.15533]
[1768852744100,0.88571528,3221.6,3220.6,0.15533]
[1768852744297,0.88571528,3221.5,3220.6,0.15533]
[1768852744498,0.13558664,3221.7,3220.6,0.15533]
[1768852744799,0.88571625,3221.6,3220.6,0.15533]
[1768852744998,0.88571625,3221.5,3220.6,0.15533]
[1768852745198,0.13558664,3221.7,3220.6,0.15533]
[1768852745399,0.8857161,3221.6,3220.6,0.15533]
[1768852745599,0.8857161,3221.5,3220.6,0.15533]
[1768852745801,0.13558664,3221.7,3220.6,0.15533]
[1768852746000,0.88572688,3221.6,3220.6,0.15533]
[1768852746200,0.88572688,3221.5,3220.6,0.15533]
[1768852746399,0.13558664,3221.7,3220.6,0.15533]
[1768852746602,0.88572325,3221.6,3220.6,0.15533]
[1768852746901,0.88572325,3221.5,3220.6,0.15533]
[1768852747101,0.13558664,3221.7,3220.6,0.15533]
[1768852747298,0.88571994,3221.6,3220.2,0.14201203]
[1768852747502,0.88571994,3221.5,3220.2,0.14201203]
[1768852747704,0.88571994,3221.4,3220.2,0.14201203]
[1768852747904,0.13558664,3221.7,3220.2,0.14201203]
[1768852748105,0.88569638,3221.6,3220.2,0.14201203]
[1768852748411,0.88569638,3221.5,3220.2,0.14201203]
[1768852748621,0.88569638,3221.4,3220.2,0.14201203]
[1768852748909,0.13558664,3221.7,3220.2,0.14201203]
[1768852749109,0.88557485,3221.6,3220.2,0.14201203]
[1768852749308,0.88557485,3221.5,3220.2,0.14201203]
[1768852749513,0.13558664,3221.7,3220.2,0.14201203]
[1768852749819,0.88551185,3221.6,3220.2,0.14201203]
[1768852750002,0.88551185,3221.5,3220.2,0.14201203]
[1768852750198,0.13558664,3221.7,3220.2,0.14201203]
[1768852750398,0.88546871,3221.6,3220.2,0.14201203]
[1768852750704,0.88546871,3221.5,3220.2,0.14201203]
[1768852750901,0.88546871,3221.4,3220.2,0.14201203]
[1768852751105,0.13558664,3221.7,3220.2,0.14201203]
[1768852751407,0.88542368,3221.6,3220.2,0.14201203]
[1768852751717,0.88542368,3221.5,3220.3,0.13965627]
[1768852751914,0.15527,3221.9,3220.3,0.13965627]
[1768852752106,0.88546355,3221.8,3220.3,0.13965627]
[1768852752300,0.88546355,3221.7,3220.3,0.13965627]
[1768852752506,0.88546355,3221.6,3220.3,0.13965627]
[1768852752705,0.88546355,3221.5,3220.3,0.13965627]
[1768852752914,0.15527,3221.9,3220.3,0.13965627]
[1768852753105,0.88543805,3221.8,3220.3,0.13965627]
[1768852753305,0.88543805,3221.7,3220.3,0.13965627]
[1768852753506,0.88543805,3221.6,3220.3,0.13965627]
[1768852753703,0.88543805,3221.5,3220.3,0.13965627]
[1768852753915,0.15527,3221.9,3220.3,0.13965627]
[1768852754106,0.88543398,3221.8,3220.3,0.13965627]
[1768852754309,0.88543398,3221.7,3220.3,0.13965627]
[1768852754511,0.88543398,3221.6,3220.3,0.13965627]
[1768852754712,0.88543398,3221.5,3220.3,0.13965627]
[1768852754912,0.15527,3221.9,3220.3,0.13965627]
[1768852755205,0.88556307,3221.8,3220.3,0.13965627]
[1768852755419,0.88556307,3221.7,3220.3,0.13965627]
[1768852755620,0.88555486,3221.6,3220.3,0.13965627]
[1768852755916,0.88555486,3221.5,3220.3,0.13965627]
[1768852756118,0.15527,3221.9,3220.3,0.13965627]
[1768852756416,0.88557364,3221.8,3220.3,0.13965627]
[1768852756610,0.88557364,3221.7,3220.3,0.13965627]
[1768852756811,0.88557364,3221.6,3220.3,0.13965627]
[1768852757110,0.88557364,3221.5,3220.3,0.13965627]
[1768852757312,0.15527,3221.9,3220.3,0.13965627]
[1768852757511,0.88556492,3221.8,3220.3,0.29499627]
[1768852757711,0.88556492,3221.7,3220.3,0.29499627]
[1768852757915,0.88556492,3221.6,3220.3,0.29499627]
[1768852758116,0.88556492,3221.5,3220.3,0.29499627]
[1768852758312,0.29085664,3221.9,3220.3,0.29499627]
[1768852758510,0.88562922,3221.8,3220.3,0.29499627]
[1768852758711,0.88562922,3221.7,3220.3,0.29499627]
[1768852759011,0.88562922,3221.6,3220.3,0.29499627]
[1768852759308,0.88562922,3221.5,3220.3,0.29499627]
[1768852759511,0.29085664,3221.9,3220.3,0.29499627]
[1768852759717,0.88562894,3221.8,3220.3,0.29499627]
[1768852759917,0.88562894,3221.7,3220.3,0.29499627]
[1768852760113,0.88562894,3221.6,3220.3,0.29499627]
[1768852760315,0.88562894,3221.5,3220.3,0.29499627]
[1768852760613,0.29085664,3221.9,3220.3,0.29499627]
[1768852760814,0.88563044,3221.8,3220.3,0.29499627]
[1768852761013,0.88563044,3221.7,3220.3,0.29499627]
[1768852761320,0.88563044,3221.6,3220.3,0.29499627]
[1768852761620,0.88563044,3221.5,3220.3,0.29499627]